bitfinex-derivatives/quotes_BTCF0:USTF0_20250904
["timestamp","ask_amount","ask_price","bid_price","bid_amount"]
[1756957786435,1.28034035,111330.0,111320.0,0.03683353]
[1756957786729,0.90932153,111330.0,111320.0,0.03683353]
[1756957786937,0.87934575,111330.0,111320.0,0.67168235]
[1756957787233,0.8077962,111330.0,111320.0,0.30066353]
[1756957787535,0.80780846,111330.0,111320.0,0.67168235]
[1756957788033,0.80780846,111330.0,111320.0,0.30066353]
[1756957788234,1.17882728,111330.0,111320.0,0.30066353]
[1756957792029,1.17882728,111330.0,111320.0,0.56586353]
[1756957792228,1.19270728,111330.0,111320.0,0.56586353]
[1756957792831,2.37859175,111330.0,111320.0,0.27862353]
[1756957793036,2.64468753,111330.0,111320.0,0.21743353]
[1756957793238,2.58025129,111330.0,111320.0,0.21743353]
[1756957793536,2.58025129,111330.0,111320.0,0.21783353]
[1756957794135,2.66073243,111330.0,111320.0,0.16890259]
[1756957794637,2.66073243,111330.0,111320.0,0.16930259]
[1756957795136,2.58790442,111330.0,111320.0,0.16930259]
[1756957797438,2.58882362,111330.0,111320.0,0.16930259]
[1756957797939,2.58882362,111330.0,111320.0,0.0004]
[1756957798941,2.65325046,111330.0,111320.0,0.0004]
[1756957799128,2.58882362,111330.0,111320.0,0.0004]
[1756957799334,2.33882362,111330.0,111320.0,0.0004]
[1756957799931,2.33882362,111330.0,111310.0,0.85380255]
[1756957800131,0.79646695,111320.0,111310.0,0.04005255]
[1756957800327,1.19842495,111320.0,111310.0,0.00279255]
[1756957800540,1.19842495,111320.0,111310.0,0.03995255]
[1756957800740,0.82717633,111320.0,111310.0,0.03995255]
[1756957800933,1.19842495,111320.0,111310.0,0.03995255]
[1756957801639,1.13400662,111320.0,111310.0,0.03995255]
[1756957801831,1.13500662,111320.0,111310.0,0.03995255]
[1756957802840,1.13700662,111320.0,111310.0,0.03995255]
[1756957804135,1.18531235,111320.0,111310.0,0.03995255]
[1756957806139,1.18531235,111320.0,111310.0,0.87683255]
[1756957808544,3.48646194,111320.0,111300.0,0.0009]
[1756957808737,1.91021281,111310.0,111300.0,0.0009]
[1756957808939,2.26823362,111310.0,111290.0,0.04526]
[1756957809233,1.91017547,111300.0,111290.0,0.04526]
[1756957809541,2.26213347,111300.0,111290.0,0.5968]
[1756957810545,2.26413347,111300.0,111290.0,0.5968]
[1756957810844,2.26413347,111300.0,111290.0,0.5972]
[1756957811347,2.26513347,111300.0,111290.0,0.5972]
[1756957812037,2.26513347,111300.0,111290.0,0.0084]
[1756957812238,0.78013899,111300.0,111290.0,0.0084]
[1756957812441,2.26513347,111300.0,111290.0,0.0084]
[1756957812641,2.26513347,111300.0,111290.0,0.008]
[1756957812840,3.10193347,111300.0,111290.0,0.0084]
[1756957813535,3.09993347,111300.0,111290.0,0.0084]
[1756957813735,3.10293347,111300.0,111290.0,0.0084]
[1756957814240,3.03855248,111300.0,111290.0,0.0084]
[1756957816143,3.03855248,111300.0,111290.0,0.02273]
[1756957816442,3.10293347,111300.0,111290.0,0.02273]
[1756957816938,2.26613347,111300.0,111290.0,0.02273]
[1756957817141,2.26613347,111300.0,111290.0,0.0084]
[1756957818045,0.78113899,111300.0,111290.0,0.0084]
[1756957818236,2.26613347,111300.0,111290.0,0.04655]
[1756957819145,2.24990354,111300.0,111290.0,0.04655]
[1756957820234,1.13615768,111300.0,111290.0,0.04655]
[1756957820738,1.5074063,111300.0,111290.0,0.04655]
[1756957823044,1.8682063,111300.0,111290.0,0.04655]
[1756957825041,1.82005524,111300.0,111290.0,0.04655]
[1756957825345,1.88443623,111300.0,111290.0,0.04655]
[1756957828647,1.88443623,111300.0,111290.0,0.29655]
[1756957828648,1.51318761,111300.0,111290.0,0.29655]
[1756957828944,0.40418286,111300.0,111290.0,0.66779862]
[1756957829151,0.355958,111300.0,111290.0,0.66779862]
[1756957829549,0.355958,111300.0,111290.0,0.29655]
[1756957830546,0.72720662,111300.0,111290.0,0.29655]
[1756957830753,1.13623148,111300.0,111290.0,1.14201364]
[1756957832358,1.5074801,111300.0,111290.0,0.0084]
[1756957832549,2.24997734,111300.0,111290.0,0.0084]
[1756957832745,2.20175248,111300.0,111290.0,0.0084]
[1756957832944,2.26613347,111300.0,111290.0,0.0084]
[1756957833144,2.26613347,111300.0,111290.0,0.04655]
[1756957833348,0.78113899,111300.0,111290.0,0.04655]
[1756957833548,2.26613347,111300.0,111290.0,0.04655]
[1756957836557,1.08800662,111300.0,111290.0,0.04655]
[1756957837061,1.13629564,111300.0,111290.0,0.04655]
[1756957837352,0.76504702,111300.0,111290.0,0.66779862]
[1756957837753,0.76504702,111300.0,111290.0,0.66739862]
[1756957838156,0.76504702,111300.0,111290.0,0.29615]
[1756957838658,1.13629564,111300.0,111290.0,0.29615]
[1756957838861,1.13629564,111300.0,111290.0,0.04615]
[1756957839156,1.13629564,111300.0,111290.0,0.88243]
[1756957845656,1.13629564,111300.0,111290.0,0.008]
[1756957845657,2.51613347,111300.0,111290.0,0.008]
[1756957846057,1.03113899,111300.0,111290.0,0.008]
[1756957846258,2.51613347,111300.0,111290.0,0.008]
[1756957847563,2.45175248,111300.0,111290.0,0.008]
[1756957848561,2.53223362,111300.0,111290.0,0.008]
[1756957849863,2.45175248,111300.0,111290.0,0.008]
[1756957851678,2.45175248,111300.0,111290.0,0.02176]
[1756957852380,2.45175248,111300.0,111290.0,0.008]
[1756957853674,2.51617426,111300.0,111290.0,0.008]
[1756957853884,1.03117978,111300.0,111290.0,0.008]
[1756957854072,2.45175248,111300.0,111290.0,0.008]
[1756957855570,2.51617426,111300.0,111290.0,0.008]
[1756957856773,2.51617426,111300.0,111290.0,0.02176]
[1756957857479,2.51680778,111300.0,111290.0,0.02176]
[1756957858484,2.452386,111300.0,111290.0,0.008]
[1756957858684,2.53286714,111300.0,111280.0,0.00867427]
[1756957858878,0.7966311,111290.0,111280.0,0.00867427]
[1756957859080,1.1485891,111290.0,111280.0,0.00857427]
[1756957859680,1.1485891,111290.0,111280.0,0.04542427]
[1756957860283,0.7771821,111290.0,111280.0,0.04542427]
[1756957860484,1.1515891,111290.0,111280.0,0.04542427]
[1756957860685,1.1525891,111290.0,111280.0,0.04542427]
[1756957869194,1.1525891,111290.0,111280.0,0.02233427]
[1756957869398,1.1525891,111290.0,111280.0,0.04687427]
[1756957869587,1.088165,111290.0,111280.0,0.04687427]
[1756957870400,1.088165,111290.0,111280.0,0.00857427]
[1756957870589,2.25424614,111290.0,111280.0,0.00857427]
[1756957871189,1.41864614,111290.0,111280.0,0.00857427]
[1756957871389,2.25416614,111290.0,111280.0,0.00857427]
[1756957872387,2.25616614,111290.0,111280.0,0.00857427]
[1756957872698,2.25716614,111290.0,111280.0,0.00857427]
[1756957874201,2.25716614,111290.0,111270.0,0.04527]
[1756957874401,0.42520975,111280.0,111270.0,0.04527]
[1756957874598,1.14857475,111280.0,111270.0,0.04517]
[1756957875501,1.084165,111280.0,111270.0,0.04517]
[1756957875893,1.088165,111280.0,111270.0,0.00624]
[1756957876501,1.459572,111280.0,111270.0,0.00624]
[1756957877000,1.16964614,111280.0,111270.0,0.00624]
[1756957877406,1.17850352,111280.0,111270.0,0.00624]
[1756957878202,1.16244451,111280.0,111270.0,0.00624]
[1756957878503,2.53498915,111280.0,111270.0,0.00624]
[1756957878801,3.48284777,111280.0,111260.0,0.0001]
[1756957878999,1.92696835,111270.0,111260.0,0.0001]
[1756957879202,2.30892635,111270.0,111250.0,0.0464]
[1756957879404,0.7966223,111260.0,111250.0,0.0464]
[1756957879703,1.1385803,111260.0,111250.0,0.0463]
[1756957880402,1.1405803,111260.0,111250.0,0.0463]
[1756957880604,1.1455803,111260.0,111250.0,0.0463]
[1756957882301,1.1455803,111260.0,111250.0,0.2963]
[1756957884000,1.12944931,111260.0,111250.0,0.2963]
[1756957884602,1.12944931,111260.0,111250.0,1.1315]
[1756957888209,1.12944931,111260.0,111250.0,0.02176]
[1756957888411,1.081165,111260.0,111250.0,0.02176]
[1756957889412,1.079165,111260.0,111250.0,0.02176]
[1756957889615,1.084165,111260.0,111250.0,0.02176]
[1756957894214,1.1485803,111260.0,111250.0,0.0463]
[1756957896710,1.1485803,111260.0,111250.0,0.02176]
[1756957896916,1.13242714,111260.0,111250.0,0.02176]
[1756957897418,1.334165,111260.0,111250.0,0.008]
[1756957897618,1.41470535,111260.0,111250.0,0.04693]
[1756957898521,1.40770535,111260.0,111250.0,0.04693]
[1756957898719,1.41570535,111260.0,111250.0,0.04693]
[1756957899021,1.41670535,111260.0,111250.0,0.04693]
[1756957901721,1.41670535,111260.0,111250.0,0.02239]
[1756957904526,1.04529835,111260.0,111250.0,0.04704]
[1756957904714,1.41670535,111260.0,111250.0,0.04704]
[1756957905913,0.79529835,111260.0,111250.0,0.04704]
[1756957906115,1.15050896,111260.0,111250.0,0.04704]
[1756957909225,2.26472996,111260.0,111250.0,0.008]
[1756957909421,2.00122535,111260.0,111240.0,0.00973688]
[1756957909726,0.80403163,111250.0,111240.0,0.03438688]
[1756957909918,1.14598963,111250.0,111240.0,0.03438688]
[1756957910813,1.14598963,111250.0,111240.0,0.00973688]
[1756957911223,1.15298963,111250.0,111240.0,0.00973688]
[1756957911423,1.15598963,111250.0,111240.0,0.00973688]
[1756957912723,1.15598963,111250.0,111230.0,0.02239]
[1756957913026,0.78792924,111240.0,111230.0,0.04704]
[1756957913324,1.16988724,111240.0,111230.0,0.04704]
[1756957914020,1.18598963,111240.0,111230.0,0.04704]
[1756957914526,1.20206277,111240.0,111230.0,0.04704]
[1756957915226,1.20506277,111240.0,111230.0,0.04704]
[1756957915826,1.19598963,111240.0,111230.0,0.04704]
[1756957916625,1.17989025,111240.0,111230.0,0.04704]
[1756957917223,2.30324513,111240.0,111230.0,0.04704]
[1756957917422,1.17989025,111240.0,111230.0,0.04704]
[1756957917823,0.80848325,111240.0,111230.0,0.04704]
[1756957918028,1.17989025,111240.0,111230.0,0.04704]
[1756957918725,1.17989025,111240.0,111230.0,0.8812]
[1756957919427,1.18021648,111240.0,111230.0,0.8812]
[1756957919923,1.18021648,111240.0,111230.0,0.008]
[1756957920119,2.56151555,111240.0,111230.0,0.008]
[1756957920323,2.49713092,111240.0,111230.0,0.008]
[1756957921928,2.49813092,111240.0,111230.0,0.008]
[1756957922329,2.56250266,111240.0,111230.0,0.008]
[1756957922523,2.49813092,111240.0,111230.0,0.008]
[1756957922724,2.57867127,111240.0,111230.0,0.008]
[1756957923330,2.57967127,111240.0,111230.0,0.008]
[1756957924025,2.56351,111240.0,111230.0,0.008]
[1756957927128,2.31351,111240.0,111230.0,0.04639]
[1756957927333,0.82657708,111240.0,111230.0,0.04639]
[1756957927526,1.13393123,111240.0,111230.0,0.04639]
[1756957927722,1.18219881,111240.0,111230.0,0.04639]
[1756957930435,0.81046558,111240.0,111230.0,0.04639]
[1756957930638,0.81046558,111240.0,111230.0,0.66812323]
[1756957933435,0.754758,111240.0,111230.0,0.66812323]
[1756957933830,1.38393123,111240.0,111230.0,0.00335]
[1756957934031,2.56351,111240.0,111230.0,0.01825]
[1756957934237,1.44831031,111240.0,111230.0,0.01825]
[1756957934538,1.82004354,111240.0,111230.0,0.04144]
[1756957934736,2.56351,111240.0,111230.0,0.00335]
[1756957935039,1.44831031,111240.0,111230.0,0.04144]
[1756957936933,1.43220572,111240.0,111230.0,0.01825]
[1756957938442,1.44831031,111240.0,111230.0,0.01825]
[1756957938637,1.82004354,111240.0,111230.0,0.00335]
[1756957939237,1.44831031,111240.0,111230.0,0.00335]
[1756957940344,1.82004354,111240.0,111230.0,0.00335]
[1756957940937,1.44831031,111240.0,111230.0,0.00335]
[1756957941334,1.82004354,111240.0,111230.0,0.00335]
[1756957941733,0.82657708,111240.0,111230.0,0.04144]
[1756957941939,1.13393123,111240.0,111230.0,0.04144]
[1756957942640,1.50566446,111240.0,111230.0,0.04144]
[1756957943541,1.13393123,111240.0,111230.0,0.04144]
[1756957943938,1.19831031,111240.0,111230.0,0.04144]
[1756957950546,0.82657708,111240.0,111230.0,0.04144]
[1756957950752,1.19831031,111240.0,111230.0,0.04144]
[1756957951549,0.82657708,111240.0,111230.0,0.04144]
[1756957951752,1.19831031,111240.0,111230.0,0.04144]
[1756957952650,1.13393123,111240.0,111230.0,0.04144]
[1756957953058,1.19831031,111240.0,111230.0,0.04144]
[1756957953354,1.13393123,111240.0,111230.0,0.04144]
[1756957954254,1.19831031,111240.0,111230.0,0.04144]
[1756957954758,1.13393123,111240.0,111230.0,0.04144]
[1756957955051,1.19831031,111240.0,111230.0,0.04144]
[1756957955245,0.82657708,111240.0,111230.0,0.29144]
[1756957955445,0.81050008,111240.0,111230.0,0.66317323]
[1756957956056,0.44226008,111240.0,111230.0,0.66317323]
[1756957956249,0.393958,111240.0,111230.0,0.66317323]
[1756957956950,0.163958,111240.0,111230.0,0.66317323]
[1756957957452,0.163958,111240.0,111230.0,1.49601323]
[1756957958157,0.373958,111240.0,111230.0,1.49601323]
[1756957958759,0.073958,111240.0,111230.0,0.66317323]
[1756957959058,0.073958,111240.0,111230.0,1.49593323]
[1756957961260,0.033958,111240.0,111230.0,1.76113323]
[1756957963166,0.033958,111240.0,111230.0,0.92837323]
[1756957963368,0.033958,111240.0,111230.0,1.76089323]
[1756957967672,0.033958,111240.0,111230.0,2.12169323]
[1756957968375,0.033958,111240.0,111230.0,4.02113323]
[1756957968574,0.033958,111240.0,111230.0,3.77113323]
[1756957971175,0.033958,111240.0,111230.0,4.39286646]
[1756957971778,0.033958,111240.0,111230.0,4.48273896]
[1756957972176,0.40920208,111270.0,111260.0,0.03814]
[1756957972478,0.3609,111270.0,111260.0,1.24203323]
[1756957973578,0.3779,111270.0,111260.0,1.24203323]
[1756957974079,0.3749,111270.0,111260.0,1.24203323]
[1756957975570,0.3749,111270.0,111260.0,1.25120629]
[1756957975978,0.3749,111270.0,111260.0,1.51640629]
[1756957979583,0.3749,111270.0,111260.0,1.51608533]
[1756957980870,0.0141,111270.0,111260.0,1.87688533]
[1756957984186,0.0364203,111270.0,111260.0,1.87688533]
[1756957985388,0.0364203,111270.0,111260.0,1.96673393]
[1756957986084,0.0364203,111270.0,111260.0,2.5881462]
[1756957986393,0.40910208,111300.0,111290.0,0.03814]
[1756957986692,0.67910208,111300.0,111290.0,1.24103227]
[1756957987189,0.67910208,111300.0,111290.0,0.40955227]
[1756957987380,0.67910208,111300.0,111290.0,1.24099227]
[1756957987890,0.67910208,111300.0,111290.0,0.40955227]
[1756957988084,0.67910208,111300.0,111290.0,1.24095227]
[1756957988579,0.67910208,111300.0,111290.0,0.41055227]
[1756957988780,2.36744908,111300.0,111290.0,0.004]
[1756957989094,2.36744908,111300.0,111270.0,0.0001]
[1756957989095,2.44798943,111300.0,111270.0,0.0001]
[1756957989389,1.15716945,111280.0,111270.0,0.19162]
[1756957989588,1.53716945,111280.0,111270.0,0.19162]
[1756957990395,1.53716945,111280.0,111270.0,0.19262]
[1756957991486,1.41575718,111280.0,111270.0,0.19262]
[1756957991682,1.78716945,111280.0,111270.0,0.19262]
[1756957991986,1.78816945,111280.0,111270.0,0.87622]
[1756957993092,1.86045539,111280.0,111270.0,0.87622]
[1756957993488,1.48904312,111280.0,111270.0,0.87622]
[1756957993690,1.86045539,111280.0,111270.0,0.87622]
[1756957994393,1.48904312,111280.0,111270.0,0.87622]
[1756957994593,1.86045539,111280.0,111270.0,0.87622]
[1756957994795,1.48904312,111280.0,111270.0,0.87622]
[1756957995091,1.86045539,111280.0,111270.0,0.87622]
[1756957995896,1.48904312,111280.0,111270.0,0.87622]
[1756957996086,1.86045539,111280.0,111270.0,0.87622]
[1756957998397,1.88257965,111280.0,111270.0,0.87622]
[1756958002796,1.88257965,111280.0,111270.0,0.04498]
[1756958002999,1.88257965,111280.0,111270.0,0.8759]
[1756958003889,1.63257965,111280.0,111270.0,0.006]
[1756958004098,1.88257965,111280.0,111270.0,0.006]
[1756958004298,1.81842247,111280.0,111270.0,0.63456]
[1756958004596,1.89896282,111280.0,111270.0,0.63456]
[1756958004987,1.89896282,111280.0,111270.0,0.006]
[1756958005194,1.89906282,111280.0,111270.0,0.006]
[1756958005397,1.81852247,111280.0,111270.0,0.006]
[1756958006001,1.93102109,111280.0,111260.0,0.86989]
[1756958006303,0.81275262,111270.0,111260.0,0.86989]
[1756958006600,1.19497688,111270.0,111260.0,0.86979]
[1756958007101,1.19497688,111270.0,111260.0,0.87179]
[1756958007303,0.82356461,111270.0,111260.0,0.87179]
[1756958007502,1.19497688,111270.0,111260.0,0.87179]
[1756958008296,1.11443653,111270.0,111260.0,0.87179]
[1756958008491,1.11443653,111270.0,111260.0,0.86979]
[1756958008703,1.11643653,111270.0,111260.0,0.87079]
[1756958008904,1.11743653,111270.0,111260.0,0.87079]
[1756958009405,1.18171069,111270.0,111260.0,0.87079]
[1756958011609,0.81029842,111270.0,111260.0,0.87079]
[1756958011806,1.18171069,111270.0,111260.0,0.87079]
[1756958012210,1.1906617,111270.0,111260.0,0.87079]
[1756958014408,1.17460689,111270.0,111260.0,0.87079]
[1756958014917,1.16565588,111270.0,111260.0,0.87079]
[1756958018516,0.79424361,111270.0,111260.0,0.87079]
[1756958018718,1.12565588,111270.0,111260.0,0.87079]
[1756958019120,1.18565588,111270.0,111260.0,0.87079]
[1756958019919,0.43424361,111270.0,111260.0,0.87079]
[1756958020120,0.80565588,111270.0,111260.0,0.87079]
[1756958021119,0.43424361,111270.0,111260.0,0.87079]
[1756958021314,0.80565588,111270.0,111260.0,0.87079]
[1756958021514,0.43424361,111270.0,111260.0,0.87079]
[1756958021721,0.80565588,111270.0,111260.0,0.87079]
[1756958021922,1.17565588,111270.0,111260.0,0.87079]
[1756958022323,1.12565588,111270.0,111260.0,0.87079]
[1756958023323,1.12565588,111270.0,111260.0,0.03991]
[1756958023524,1.12565588,111270.0,111260.0,0.87019]
[1756958025625,0.43424361,111270.0,111260.0,0.87019]
[1756958025824,1.16565588,111270.0,111260.0,0.87019]
[1756958029623,0.80565588,111270.0,111260.0,1.24160227]
[1756958029829,0.43424361,111270.0,111260.0,1.24160227]
[1756958030430,0.45029842,111270.0,111260.0,1.49160227]
[1756958032430,0.38602426,111270.0,111260.0,1.49160227]
[1756958034429,0.38602426,111270.0,111260.0,1.24160227]
[1756958034630,0.43437708,111270.0,111260.0,1.49160227]
[1756958034831,0.43437708,111270.0,111260.0,1.75680227]
[1756958035327,0.43437708,111270.0,111260.0,1.49160227]
[1756958035732,0.07357708,111270.0,111260.0,1.49160227]
[1756958036433,0.02522426,111270.0,111260.0,1.49160227]
[1756958039031,0.02522426,111270.0,111260.0,1.85240227]
[1756958039229,0.02522426,111270.0,111260.0,1.60240227]
[1756958039926,0.02522426,111270.0,111260.0,1.24160227]
[1756958041327,0.02522426,111270.0,111260.0,1.50680227]
[1756958041528,0.02522426,111270.0,111260.0,1.50678063]
[1756958041829,0.02522426,111270.0,111260.0,1.86758063]
[1756958042328,0.02522426,111270.0,111260.0,1.50678063]
[1756958042529,0.02522426,111270.0,111260.0,1.86758063]
[1756958043434,0.02522426,111270.0,111260.0,1.50678063]
[1756958043631,0.02522426,111270.0,111260.0,1.86758063]
[1756958044137,0.02522426,111270.0,111260.0,1.50678063]
[1756958044535,0.02522426,111270.0,111260.0,0.67650063]
[1756958044831,0.02522426,111270.0,111260.0,1.50598063]
[1756958052837,0.02522426,111270.0,111260.0,1.13459]
[1756958053042,0.02522426,111270.0,111260.0,1.50598063]
[1756958053245,0.02522426,111270.0,111260.0,0.67650063]
[1756958053445,0.02522426,111270.0,111260.0,1.50562063]
[1756958053636,0.02522426,111270.0,111260.0,0.67650063]
[1756958053842,0.02522426,111270.0,111260.0,1.50562063]
[1756958054156,0.76602426,111270.0,111260.0,0.30511]
[1756958054443,0.38602426,111270.0,111260.0,1.50558063]
[1756958054641,0.38602426,111270.0,111260.0,0.67650063]
[1756958054843,0.63602426,111270.0,111260.0,0.30511]
[1756958055239,0.68437708,111270.0,111260.0,1.13419]
[1756958058651,0.68437708,111270.0,111260.0,1.50558063]
[1756958059147,0.68437708,111270.0,111260.0,1.24038063]
[1756958059353,0.32357708,111270.0,111260.0,1.24038063]
[1756958060551,0.68437708,111270.0,111260.0,1.24038063]
[1756958061252,0.32357708,111270.0,111260.0,1.24038063]
[1756958062447,0.07357708,111270.0,111260.0,1.24038063]
[1756958064244,0.38602426,111270.0,111260.0,0.41130063]
[1756958064450,0.38602426,111270.0,111260.0,1.24010063]
[1756958065053,0.38602426,111270.0,111260.0,1.50530063]
[1756958068052,0.38602426,111270.0,111260.0,0.30511]
[1756958068355,0.38602426,111270.0,111260.0,1.50518063]
[1756958073460,0.38602426,111270.0,111260.0,0.67650063]
[1756958073647,0.38602426,111270.0,111260.0,1.50506063]
[1756958074654,0.43437708,111270.0,111260.0,1.50506063]
[1756958077165,0.43437708,111270.0,111260.0,1.13367]
[1756958077355,0.43437708,111270.0,111260.0,1.21367]
[1756958077662,0.43437708,111270.0,111260.0,1.55955063]
[1756958078363,0.43437708,111270.0,111260.0,1.52955063]
[1756958079357,0.43437708,111270.0,111260.0,1.50955063]
[1756958079961,0.43437708,111270.0,111260.0,0.68099063]
[1756958080266,0.43437708,111270.0,111260.0,1.50939063]
[1756958088971,0.43437708,111270.0,111260.0,0.3096]
[1756958089171,0.43437708,111270.0,111260.0,1.13784]
[1756958089366,0.80576771,111270.0,111260.0,1.13784]
[1756958090073,0.43437708,111270.0,111260.0,1.13784]
[1756958094174,0.43437708,111270.0,111260.0,1.50923063]
[1756958094378,0.45029842,111270.0,111260.0,1.50923063]
[1756958094573,0.45029842,111270.0,111260.0,1.24403063]
[1756958097571,0.02522426,111270.0,111260.0,1.24403063]
[1756958097766,0.07358018,111270.0,111260.0,1.24403063]
[1756958097968,0.02522426,111270.0,111260.0,1.24403063]
[1756958098167,0.02522426,111270.0,111260.0,1.49403063]
[1756958098373,0.07357959,111270.0,111260.0,1.85483063]
[1756958099183,0.07357959,111270.0,111260.0,1.61483063]
[1756958099479,0.07357959,111270.0,111260.0,1.25403063]
[1756958100679,0.07357959,111270.0,111260.0,1.51923063]
[1756958101477,0.07357959,111270.0,111260.0,1.51924143]
[1756958104282,0.07357959,111270.0,111260.0,0.69100143]
[1756958104478,0.43437959,111270.0,111260.0,1.51892143]
[1756958105582,1.05578102,111270.0,111260.0,0.3196]
[1756958105780,1.07169985,111270.0,111260.0,1.14748]
[1756958105979,1.07169985,111270.0,111260.0,0.88228]
[1756958106380,0.70029842,111270.0,111260.0,0.88228]
[1756958106581,1.40069985,111270.0,111260.0,0.88228]
[1756958106784,1.40169985,111270.0,111260.0,0.88228]
[1756958107890,1.40269985,111270.0,111260.0,0.88228]
[1756958110681,1.40269985,111270.0,111260.0,0.87224]
[1756958113290,1.03129842,111270.0,111260.0,0.87224]
[1756958113485,1.40269985,111270.0,111260.0,0.87224]
[1756958120293,0.70129842,111270.0,111260.0,0.87224]
[1756958120493,1.40269985,111270.0,111260.0,0.87224]
[1756958123995,1.41269985,111270.0,111260.0,0.87224]
[1756958124396,0.70129842,111270.0,111260.0,0.87224]
[1756958124591,1.43269985,111270.0,111260.0,0.87224]
[1756958127098,1.43264339,111270.0,111260.0,0.87224]
[1756958127296,1.41658876,111270.0,111260.0,0.87224]
[1756958130796,1.16658876,111270.0,111260.0,0.00549]
[1756958131098,2.54684768,111270.0,111260.0,0.66877]
[1756958131399,2.48257352,111270.0,111260.0,0.66877]
[1756958131900,2.48257352,111270.0,111260.0,0.83289]
[1756958132102,2.48257352,111270.0,111260.0,0.00549]
[1756958132994,3.30997352,111270.0,111260.0,0.00549]
[1756958134204,3.37429061,111270.0,111260.0,0.00549]
[1756958134399,3.30997352,111270.0,111260.0,0.00549]
[1756958135505,3.37429061,111270.0,111260.0,0.00549]
[1756958140412,3.37417061,111270.0,111260.0,0.00549]
[1756958140616,3.39039387,111270.0,111260.0,0.01401]
[1756958144415,0.02242,111260.0,111250.0,0.03766]
[1756958144621,1.08668923,111260.0,111250.0,0.03756]
[1756958145616,1.08968923,111260.0,111250.0,0.03856]
[1756958146322,1.08968923,111260.0,111250.0,0.03956]
[1756958147420,1.08968923,111260.0,111250.0,0.002]
[1756958147616,1.17723958,111260.0,111250.0,0.002]
[1756958148519,1.31123599,111260.0,111250.0,0.002]
[1756958150927,1.23069564,111260.0,111250.0,0.002]
[1756958151617,1.48069564,111260.0,111250.0,0.002]
[1756958151821,1.59319426,111260.0,111240.0,0.0001]
[1756958152022,0.83497141,111250.0,111240.0,0.02329]
[1756958152221,1.21703921,111250.0,111240.0,0.02319]
[1756958152422,1.21703921,111250.0,111240.0,0.0372]
[1756958152917,1.20096323,111250.0,111240.0,0.0392]
[1756958153725,2.25189352,111250.0,111240.0,0.001]
[1756958153924,2.3332435,111250.0,111240.0,0.003]
[1756958154222,1.59040456,111250.0,111240.0,0.003]
[1756958155021,2.33320742,111250.0,111240.0,0.003]
[1756958155420,2.33520742,111250.0,111240.0,0.002]
[1756958155623,2.34020742,111250.0,111230.0,2.74389]
[1756958155816,1.91065011,111240.0,111230.0,2.74389]
[1756958156116,2.24271791,111240.0,111230.0,2.74379]
[1756958156420,2.25189048,111240.0,111230.0,2.74379]
[1756958156613,2.25189048,111240.0,111230.0,2.74479]
[1756958156814,1.13768619,111240.0,111230.0,2.74579]
[1756958158423,1.14368619,111240.0,111230.0,2.74579]
[1756958161122,1.51508762,111240.0,111230.0,2.74579]
[1756958161319,1.45084323,111240.0,111230.0,1.91883]
[1756958161522,2.19538985,111240.0,111230.0,2.74563]
[1756958161715,2.25963424,111240.0,111230.0,2.74563]
[1756958162627,0.77228476,111240.0,111230.0,2.74563]
[1756958162828,2.25963424,111240.0,111230.0,2.74563]
[1756958163224,2.19538985,111240.0,111230.0,2.74563]
[1756958163429,2.21780985,111240.0,111230.0,0.86978]
[1756958163823,2.28205424,111240.0,111230.0,0.86978]
[1756958164030,2.21780985,111240.0,111230.0,0.86978]
[1756958169135,0.73046037,111240.0,111230.0,0.86978]
[1756958169333,2.21780985,111240.0,111230.0,0.86978]
[1756958171339,2.29812375,111240.0,111230.0,0.86978]
[1756958174738,1.93732375,111240.0,111230.0,0.86978]
[1756958175036,2.65892375,111240.0,111230.0,0.86978]
[1756958176544,2.57860985,111240.0,111230.0,0.86978]
[1756958176933,2.64890175,111240.0,111230.0,0.86978]
[1756958178440,2.71321966,111240.0,111230.0,0.86978]
[1756958180241,2.27706438,111240.0,111230.0,0.83576665]
[1756958180542,1.60453097,111240.0,111230.0,0.83576665]
[1756958180944,1.61356565,111240.0,111230.0,0.83576665]
[1756958184450,1.64575037,111240.0,111230.0,0.76290662]
[1756958185346,1.53325175,111240.0,111230.0,0.76290662]
[1756958186953,1.61373699,111240.0,111230.0,0.76290662]
[1756958188853,1.60470231,111240.0,111230.0,0.76290662]
[1756958189047,1.24200225,111240.0,111230.0,0.76290662]
[1756958189247,1.61383962,111240.0,111230.0,0.76290662]
[1756958190249,1.23286494,111240.0,111230.0,0.76290662]
[1756958190452,1.23286494,111240.0,111230.0,1.38474399]
[1756958190655,1.23286494,111240.0,111230.0,1.01290662]
[1756958191456,1.21044494,111240.0,111230.0,1.01290662]
[1756958192556,1.58228231,111240.0,111230.0,1.01290662]
[1756958193152,1.56618507,111240.0,111230.0,1.01290662]
[1756958193348,1.1943477,111240.0,111230.0,1.01290662]
[1756958193558,1.21044494,111240.0,111230.0,1.38474399]
[1756958194357,1.1943339,111240.0,111230.0,1.38474399]
[1756958197761,1.1943339,111240.0,111230.0,1.01290662]
[1756958199566,1.56617127,111240.0,111230.0,1.01290662]
[1756958201676,1.1943339,111240.0,111230.0,1.01290662]
[1756958201874,1.56617127,111240.0,111230.0,1.01290662]
[1756958203077,1.56617127,111240.0,111230.0,1.38474399]
[1756958203576,1.1943339,111240.0,111230.0,1.38474399]
[1756958204579,1.2170339,111240.0,111230.0,0.65958737]
[1756958204780,1.58887127,111240.0,111230.0,1.11335]
[1756958206282,1.2170339,111240.0,111230.0,1.11335]
[1756958206481,1.58887127,111240.0,111230.0,1.11335]
[1756958207976,1.2170339,111240.0,111230.0,1.11335]
[1756958208183,1.58887127,111240.0,111230.0,1.11335]
[1756958208377,1.58887127,111240.0,111230.0,1.11323]
[1756958208881,1.52449707,111240.0,111230.0,1.11323]
[1756958210983,1.1526597,111240.0,111230.0,1.11323]
[1756958211183,1.52449707,111240.0,111230.0,1.11323]
[1756958212588,1.1526597,111240.0,111230.0,1.11323]
[1756958212878,1.1526597,111240.0,111230.0,1.23506737]
[1756958213071,1.20089294,111240.0,111230.0,1.24404888]
[1756958215084,1.20089294,111240.0,111230.0,0.87221151]
[1756958215283,1.20089294,111240.0,111230.0,1.24404888]
[1756958215782,1.20089294,111240.0,111230.0,0.87221151]
[1756958215984,1.20089294,111240.0,111230.0,1.24404888]
[1756958216485,1.20089294,111240.0,111230.0,0.41856888]
[1756958217185,1.20089294,111240.0,111230.0,1.24384888]
[1756958218388,1.17882514,111240.0,111230.0,1.24384888]
[1756958218687,1.20033252,111240.0,111230.0,1.49384888]